bitfinex/quotes_BTCUSD_20230111
["timestamp","ask_amount","ask_price","bid_price","bid_amount"]
[1673446465322,0.01,17383.0,17382.0,1.79121452]
[1673446465575,0.01,17383.0,17382.0,2.09121452]
[1673446467103,0.01,17383.0,17382.0,2.2942643]
[1673446467663,2.03256933,17384.0,17382.0,2.06021452]
[1673446467901,2.03256933,17384.0,17382.0,1.76021452]
[1673446469740,2.04256933,17384.0,17382.0,1.79121452]
[1673446470013,2.03256933,17384.0,17382.0,1.76021452]
[1673446470307,2.04756933,17384.0,17382.0,1.79221452]
[1673446470514,2.03256933,17384.0,17382.0,1.76021452]
[1673446470767,2.04256933,17384.0,17382.0,1.79121452]
[1673446471026,2.03256933,17384.0,17382.0,1.76021452]
[1673446471282,0.3,17383.0,17382.0,0.607284]
[1673446471540,0.97291276,17383.0,17381.0,1.175332]
[1673446472052,0.97291276,17383.0,17381.0,0.575332]
[1673446472586,0.97291276,17383.0,17382.0,0.031]
[1673446472859,0.97291276,17383.0,17381.0,1.67647469]
[1673446473119,0.98791276,17383.0,17381.0,1.70847469]
[1673446473374,0.98791276,17383.0,17381.0,2.28378669]
[1673446473631,0.98791276,17383.0,17381.0,2.25178669]
[1673446473632,0.97291276,17383.0,17381.0,2.25178669]
[1673446473929,0.98291276,17383.0,17382.0,0.031]
[1673446474237,0.97291276,17383.0,17381.0,2.19634269]
[1673446474431,0.98291276,17383.0,17381.0,2.22734269]
[1673446479036,0.72331276,17383.0,17381.0,2.22734269]
[1673446480092,0.72331276,17383.0,17382.0,0.3]
[1673446480350,0.72331276,17383.0,17382.0,0.575307]
[1673446480865,0.72331276,17383.0,17382.0,0.875307]
[1673446481387,0.01,17383.0,17382.0,1.450614]
[1673446481672,2.18566531,17384.0,17382.0,1.450614]
[1673446482164,0.007,17383.0,17382.0,1.454614]
[1673446482417,2.48566531,17384.0,17382.0,1.450614]
[1673446482679,2.49266531,17384.0,17382.0,1.454614]
[1673446482941,2.48566531,17384.0,17382.0,1.450614]
[1673446483249,0.007,17383.0,17382.0,1.454614]
[1673446483457,0.60838169,17383.0,17382.0,1.154614]
[1673446483717,0.60138169,17383.0,17382.0,1.150614]
[1673446483969,0.60138169,17383.0,17382.0,1.154614]
[1673446484758,0.55910169,17383.0,17382.0,1.154614]
[1673446485019,0.55910169,17383.0,17382.0,1.150614]
[1673446485282,0.56610169,17383.0,17382.0,1.154614]
[1673446485836,0.56610169,17383.0,17382.0,1.454614]
[1673446487361,0.56610169,17383.0,17382.0,0.579307]
[1673446487629,0.007,17383.0,17382.0,0.579307]
[1673446487899,1.22083487,17383.0,17382.0,0.004]
[1673446488184,2.07650478,17383.0,17382.0,0.004]
[1673446488480,1.52083487,17383.0,17382.0,0.004]
[1673446488993,1.16116287,17383.0,17382.0,0.004]
[1673446489262,1.52083487,17383.0,17382.0,0.004]
[1673446489536,1.68633487,17383.0,17382.0,0.004]
[1673446490290,2.24163418,17383.0,17382.0,0.004]
[1673446490540,1.68633487,17383.0,17382.0,0.004]
[1673446490797,2.24163401,17383.0,17382.0,0.004]
[1673446491257,2.24166364,17383.0,17382.0,0.004]
[1673446491797,2.41384079,17383.0,17382.0,0.004]
[1673446492873,2.98911479,17383.0,17382.0,0.004]
[1673446493086,3.16954263,17383.0,17382.0,0.004]
[1673446493355,2.60043036,17383.0,17382.0,0.004]
[1673446493591,3.26192789,17383.0,17382.0,0.004]
[1673446494125,3.16811736,17383.0,17382.0,0.004]
[1673446494379,2.60043036,17383.0,17382.0,0.004]
[1673446494643,2.43493036,17383.0,17382.0,0.00187922]
[1673446494867,0.3,17382.0,17379.0,1.60553045]
[1673446495120,0.59547152,17381.0,17379.0,1.00272943]
[1673446495364,0.83314941,17381.0,17379.0,1.00272943]
[1673446495590,0.59547152,17381.0,17379.0,1.00272943]
[1673446495835,0.59547152,17381.0,17379.0,1.60272943]
[1673446496087,1.13212468,17381.0,17379.0,1.60272943]
[1673446496343,0.59373992,17380.0,17379.0,1.60272943]
[1673446496591,0.59373992,17380.0,17379.0,2.07477921]
[1673446497096,0.59357102,17380.0,17379.0,2.10277921]
[1673446497362,0.59357102,17380.0,17379.0,2.07477921]
[1673446497619,0.60757102,17380.0,17379.0,2.09977921]
[1673446497880,0.59536102,17380.0,17379.0,2.09977921]
[1673446498131,0.014,17380.0,17379.0,2.09977921]
[1673446498385,0.67951528,17381.0,17379.0,2.65050019]
[1673446498654,0.015,17380.0,17379.0,2.10289521]
[1673446498916,0.67951528,17381.0,17379.0,2.07789521]
[1673446499173,0.67951528,17381.0,17380.0,0.17225765]
[1673446499926,0.67951528,17381.0,17380.0,0.47225765]
[1673446500172,0.67951528,17381.0,17380.0,0.74763065]
[1673446500670,0.68951528,17381.0,17380.0,1.0060193]
[1673446500918,0.68951528,17381.0,17380.0,0.74763065]
[1673446500919,0.67951528,17381.0,17380.0,0.74763065]
[1673446501167,0.008,17381.0,17380.0,1.32700365]
[1673446501421,0.008,17381.0,17380.0,2.70097791]
[1673446501961,0.008,17381.0,17380.0,3.13110236]
[1673446502247,0.008,17381.0,17380.0,2.87271371]
[1673446504160,0.008,17381.0,17380.0,3.23238571]
[1673446504431,0.008,17381.0,17380.0,2.88828615]
[1673446505224,0.008,17381.0,17380.0,2.68365087]
[1673446505486,0.008,17381.0,17380.0,3.55917064]
[1673446505754,0.008,17381.0,17380.0,2.98365087]
[1673446506016,0.5659501,17384.0,17380.0,2.97965087]
[1673446506285,0.68522292,17383.0,17382.0,0.43059575]
[1673446506529,0.31161427,17385.0,17382.0,0.43059575]
[1673446506530,0.31161427,17385.0,17382.0,1.60590275]
[1673446507034,0.67007721,17384.0,17382.0,1.60590275]
[1673446507292,0.67007721,17384.0,17382.0,2.86803581]
[1673446508332,0.67007721,17384.0,17382.0,2.87203581]
[1673446508615,0.68007721,17384.0,17382.0,2.87203581]
[1673446509133,0.68007721,17384.0,17383.0,0.4722383]
[1673446509684,0.68007721,17384.0,17383.0,0.3]
[1673446509951,0.68007721,17384.0,17382.0,2.87198981]
[1673446510201,0.67007721,17384.0,17382.0,2.86798981]
[1673446510440,0.75307721,17384.0,17383.0,0.004]
[1673446510958,0.75307721,17384.0,17383.0,0.6518605]
[1673446511216,0.75307721,17384.0,17383.0,0.7796222]
[1673446511490,0.75307721,17384.0,17383.0,0.9518605]
[1673446511741,0.083,17384.0,17383.0,0.9518605]
[1673446511995,0.083,17384.0,17383.0,1.5271345]
[1673446514292,0.083,17384.0,17383.0,1.2271345]
[1673446514546,0.083,17384.0,17383.0,1.5271345]
[1673446515055,0.083,17384.0,17383.0,1.2271345]
[1673446515559,0.083,17384.0,17383.0,1.0548962]
[1673446515814,0.083,17384.0,17383.0,1.5271345]
[1673446517130,0.083,17384.0,17383.0,1.0548962]
[1673446517386,0.083,17384.0,17383.0,1.5271345]
[1673446517993,0.083,17384.0,17383.0,1.78549195]
[1673446518212,0.083,17384.0,17383.0,2.75956331]
[1673446518467,0.083,17384.0,17383.0,3.04195082]
[1673446518721,0.083,17384.0,17383.0,3.11898044]
[1673446519228,0.01161427,17385.0,17383.0,3.11498044]
[1673446519498,0.01161427,17385.0,17384.0,1.64292185]
[1673446519746,0.01161427,17385.0,17384.0,1.47077625]
[1673446520012,0.01161427,17385.0,17384.0,2.56158625]
[1673446520299,0.01161427,17385.0,17384.0,2.79340385]
[1673446520577,0.01161427,17385.0,17384.0,2.77641622]
[1673446520786,0.01961427,17385.0,17384.0,1.98092185]
[1673446521038,0.0119034,17385.0,17384.0,2.23917522]
[1673446521289,0.96069327,17385.0,17384.0,0.638]
[1673446521547,0.72301538,17385.0,17384.0,0.638]
[1673446522568,0.72301538,17385.0,17384.0,0.038]
[1673446523073,1.08268738,17385.0,17384.0,0.038]
[1673446523835,0.72301538,17385.0,17384.0,0.038]
[1673446524347,1.08268738,17385.0,17384.0,0.038]
[1673446524597,0.72301538,17385.0,17384.0,0.038]
[1673446525107,1.08268738,17385.0,17384.0,0.038]
[1673446525917,0.72301538,17385.0,17384.0,0.038]
[1673446526174,1.65789538,17385.0,17384.0,0.038]
[1673446526681,1.95789538,17385.0,17384.0,0.038]
[1673446527971,2.12339538,17385.0,17384.0,0.038]
[1673446528478,1.54818738,17385.0,17384.0,0.038]
[1673446531228,1.18851538,17385.0,17384.0,0.038]
[1673446532521,1.54818738,17385.0,17384.0,0.038]
[1673446534848,2.12339538,17385.0,17384.0,0.038]
[1673446535612,2.29557253,17385.0,17384.0,0.038]
[1673446535862,2.12339538,17385.0,17384.0,0.038]
[1673446537985,2.29557253,17385.0,17384.0,0.038]
[1673446538809,2.29557253,17385.0,17384.0,0.03792493]
[1673446539074,2.12339538,17385.0,17384.0,0.03792493]
[1673446539898,2.29557253,17385.0,17384.0,0.03792493]
[1673446542407,2.55392097,17385.0,17384.0,0.03792493]
[1673446542678,2.29557253,17385.0,17384.0,0.03792493]
[1673446542931,3.00157245,17385.0,17384.0,0.03792493]
[1673446543453,3.17323612,17385.0,17384.0,0.03792493]
[1673446543759,4.32380884,17385.0,17384.0,0.03792493]
[1673446543940,3.17338949,17385.0,17384.0,0.03792493]
[1673446544188,2.59818149,17385.0,17384.0,0.03792493]
[1673446544962,2.59122865,17385.0,17381.0,0.96682445]
[1673446545227,3.01494254,17385.0,17384.0,0.004]
[1673446545524,2.72722865,17385.0,17384.0,0.004]
[1673446546072,2.41969939,17385.0,17381.0,0.96682445]
[1673446546314,0.464,17384.0,17381.0,0.97082445]
[1673446546573,0.70167789,17384.0,17381.0,0.97082445]
[1673446546822,0.70167789,17384.0,17381.0,0.96682445]
[1673446547323,0.464,17384.0,17381.0,0.96682445]
[1673446548341,0.72182839,17383.0,17381.0,0.71257108]
[1673446549580,0.72182839,17383.0,17381.0,0.70857108]
[1673446549839,0.73382839,17383.0,17381.0,0.71257108]
[1673446550890,1.2497832,17382.0,17381.0,0.004]
[1673446551446,2.634095,17382.0,17381.0,0.004]
[1673446551685,3.03272867,17382.0,17381.0,0.004]
[1673446551942,3.29123048,17382.0,17381.0,0.004]
[1673446552213,3.29123048,17382.0,17378.0,1.46822561]
[1673446552484,2.61255848,17382.0,17381.0,0.004]
[1673446552745,2.74659937,17382.0,17381.0,0.004]
[1673446553244,2.74659937,17382.0,17378.0,0.69608001]
[1673446553245,0.3,17381.0,17378.0,0.69608001]
[1673446553502,0.1655,17379.0,17378.0,0.00034307]
[1673446553751,0.525172,17379.0,17378.0,0.00034307]
[1673446554011,0.4655,17379.0,17378.0,0.60034307]
[1673446554787,0.5535,17379.0,17378.0,0.60434307]
[1673446555056,0.2535,17379.0,17378.0,1.38538553]
[1673446555308,0.088,17379.0,17378.0,1.07648867]
[1673446555571,0.088,17379.0,17378.0,1.62879277]
[1673446555823,0.088,17379.0,17378.0,1.32879277]
[1673446557639,0.088,17379.0,17378.0,1.15664717]
[1673446557901,0.088,17379.0,17378.0,1.32879277]
[1673446558449,0.088,17379.0,17378.0,1.15664717]
[1673446558989,0.088,17379.0,17378.0,0.90434307]
[1673446559304,0.088,17379.0,17378.0,2.33343437]
[1673446559496,0.088,17379.0,17378.0,3.49588233]
[1673446559754,0.088,17379.0,17378.0,3.29588233]
[1673446560614,0.088,17379.0,17378.0,2.95155652]
[1673446560816,0.83154991,17382.0,17378.0,2.43005082]
[1673446561076,0.83154991,17382.0,17381.0,0.6]
[1673446561325,0.53154991,17382.0,17381.0,0.959672]
[1673446561577,0.53154991,17382.0,17381.0,0.6]
[1673446561839,0.53154991,17382.0,17381.0,0.9]
[1673446562095,0.9731688,17383.0,17381.0,0.9]
[1673446562621,0.9731688,17383.0,17381.0,1.07208843]
[1673446563399,0.9931688,17383.0,17381.0,1.07608843]
[1673446563919,0.9931688,17383.0,17381.0,0.77608843]
[1673446564188,0.9931688,17383.0,17381.0,1.47364927]
[1673446565454,0.9931688,17383.0,17381.0,1.30156084]
[1673446565714,0.9931688,17383.0,17381.0,1.87689984]
[1673446565968,0.9931688,17383.0,17381.0,1.30156084]
[1673446566237,1.58904292,17383.0,17381.0,0.70156084]
[1673446567104,1.58904292,17383.0,17381.0,1.30156084]
[1673446567785,2.16431792,17383.0,17381.0,1.30156084]
[1673446568298,2.16431792,17383.0,17381.0,1.29656084]
[1673446569079,0.359672,17382.0,17381.0,1.29656084]
[1673446569344,2.16431792,17383.0,17381.0,1.29656084]
[1673446569623,1.58904292,17383.0,17381.0,1.29656084]
[1673446570617,1.58904292,17383.0,17381.0,1.46864927]
[1673446572169,1.28904292,17383.0,17381.0,2.04398827]
[1673446572428,0.02,17383.0,17382.0,0.69286473]
[1673446572685,0.02,17383.0,17382.0,0.39286473]
[1673446573441,2.43761152,17384.0,17382.0,0.39286473]
[1673446573706,0.096,17383.0,17382.0,0.39686473]
[1673446574820,2.43761152,17384.0,17381.0,1.76946008]
[1673446575044,0.93491152,17384.0,17383.0,0.6]
[1673446575303,0.53891152,17384.0,17383.0,0.9]
[1673446576099,0.56091152,17384.0,17383.0,1.475274]
[1673446576338,0.022,17384.0,17383.0,1.475274]
[1673446576608,0.92749238,17385.0,17383.0,1.479274]
[1673446576867,0.136,17384.0,17383.0,1.479274]
[1673446577128,0.136,17384.0,17383.0,1.179274]
[1673446577386,0.136,17384.0,17383.0,1.479274]
[1673446577657,1.5233665,17385.0,17383.0,1.475274]
[1673446577910,1.06349238,17385.0,17383.0,1.479274]
[1673446578165,1.06349238,17385.0,17383.0,1.475274]
[1673446578166,0.92749238,17385.0,17383.0,1.475274]
[1673446578444,0.136,17384.0,17383.0,1.479274]
[1673446578989,0.92749238,17385.0,17383.0,1.475274]
[1673446579260,0.92749238,17385.0,17383.0,1.64736243]
[1673446579520,0.62749238,17385.0,17383.0,2.24717506]
[1673446579809,0.136,17384.0,17383.0,2.64876908]
[1673446580243,0.136,17384.0,17383.0,2.94876908]
[1673446580250,0.136,17384.0,17383.0,3.50533508]
[1673446580503,2.70596363,17386.0,17383.0,3.19217409]
[1673446580765,2.70596363,17386.0,17385.0,0.6]
[1673446581026,2.11008951,17386.0,17385.0,0.6]
[1673446581544,2.46976151,17386.0,17385.0,0.6]
[1673446581798,2.12408951,17386.0,17385.0,0.6]
[1673446582052,2.48376151,17386.0,17385.0,0.6]
[1673446582315,2.48376151,17386.0,17385.0,0.605]
[1673446582316,2.46976151,17386.0,17385.0,0.605]
[1673446582599,2.49176151,17386.0,17385.0,0.605]
[1673446582807,2.49176151,17386.0,17385.0,0.005]
[1673446583601,2.13208951,17386.0,17385.0,0.005]
[1673446583872,2.49176151,17386.0,17385.0,0.005]
[1673446584129,2.13208951,17386.0,17385.0,0.005]
[1673446584393,1.59704464,17386.0,17385.0,0.605]
[1673446584925,1.54056464,17386.0,17385.0,0.605]
[1673446585457,1.54056464,17386.0,17385.0,0.905]
[1673446585716,1.54056464,17386.0,17385.0,0.605]
[1673446585979,1.54056464,17386.0,17385.0,1.02573489]
[1673446588356,1.54056464,17386.0,17385.0,1.32573489]
[1673446588609,1.54056464,17386.0,17385.0,1.02573489]
[1673446588610,0.022,17386.0,17385.0,1.02573489]
[1673446588856,0.022,17386.0,17385.0,1.32573489]
[1673446589630,1.16142264,17387.0,17385.0,1.32073489]
[1673446589901,0.008,17386.0,17385.0,1.93294289]
[1673446590652,0.008,17386.0,17385.0,1.63294289]
[1673446590918,0.007,17386.0,17385.0,1.93794289]
[1673446591955,0.007,17386.0,17385.0,1.06273489]
[1673446592197,0.007,17386.0,17385.0,1.36273489]
[1673446592973,0.007,17386.0,17385.0,1.93794289]
[1673446593191,0.007,17386.0,17385.0,2.10344289]
[1673446594723,0.007,17386.0,17385.0,1.50344289]
[1673446595759,0.007,17386.0,17385.0,2.07865089]
[1673446596005,0.007,17386.0,17385.0,2.43832289]
[1673446596296,0.007,17386.0,17385.0,2.07865089]
[1673446596540,0.007,17386.0,17385.0,2.43832289]
[1673446597055,0.007,17386.0,17385.0,0.92823489]
[1673446598392,0.007,17386.0,17385.0,2.07865089]
[1673446598900,0.007,17386.0,17385.0,2.43832289]
[1673446599468,2.60531449,17388.0,17386.0,0.66770343]
[1673446599720,2.01187629,17388.0,17386.0,1.81801543]
[1673446600229,2.60296575,17388.0,17386.0,1.81801543]
[1673446601025,2.61596575,17388.0,17386.0,1.82101543]
[1673446601557,1.48094152,17388.0,17387.0,0.54208644]
[1673446601823,1.48094152,17388.0,17387.0,1.11722844]
[1673446602871,1.46794152,17388.0,17387.0,1.11722844]
[1673446603684,0.0039034,17389.0,17387.0,1.99237044]
[1673446603940,0.0039034,17389.0,17387.0,1.99737044]
[1673446603941,0.091,17388.0,17387.0,1.99737044]
[1673446604709,0.0039034,17389.0,17387.0,1.99237044]
[1673446604963,0.0949034,17389.0,17387.0,2.16127044]
[1673446605215,0.0039034,17389.0,17387.0,2.15627044]
[1673446605474,0.0039034,17389.0,17387.0,2.16127044]
[1673446605765,0.091,17388.0,17387.0,2.16127044]
[1673446606103,0.091,17388.0,17387.0,2.3403694]
[1673446606512,0.091,17388.0,17387.0,1.8764694]
[1673446607018,0.091,17388.0,17387.0,1.8814694]
[1673446607285,0.0039034,17389.0,17387.0,1.8714694]
[1673446607531,0.015,17388.0,17387.0,1.9154694]
[1673446608035,0.0039034,17389.0,17387.0,1.8714694]
[1673446608830,0.0039034,17389.0,17386.0,1.29579714]
[1673446608831,0.67216958,17388.0,17386.0,1.29579714]
[1673446609088,0.90984747,17388.0,17386.0,1.29579714]
[1673446609350,1.16288456,17388.0,17386.0,1.29579714]
[1673446609647,1.16288456,17388.0,17387.0,0.044]
[1673446609927,0.66716958,17388.0,17386.0,1.29579714]
[1673446610209,0.66716958,17388.0,17386.0,1.33979714]
[1673446610210,0.68116958,17388.0,17386.0,1.33979714]
[1673446610753,0.66716958,17388.0,17386.0,1.29579714]
[1673446611033,0.68116958,17388.0,17386.0,1.33979714]
[1673446611324,0.66716958,17388.0,17386.0,1.29559649]
[1673446611602,0.68116958,17388.0,17386.0,1.33959649]
[1673446611854,0.66716958,17388.0,17386.0,1.29559649]
[1673446612651,0.66716958,17388.0,17386.0,1.87077149]
[1673446612913,0.66216958,17388.0,17386.0,1.87077149]
[1673446613415,0.67016958,17388.0,17387.0,0.51045918]
[1673446613651,0.67016958,17388.0,17387.0,1.08560118]
[1673446614214,0.61578958,17388.0,17387.0,1.08560118]
[1673446614725,0.60778958,17388.0,17387.0,1.08560118]
[1673446614993,0.62578958,17388.0,17387.0,1.08960118]
[1673446619831,0.018,17388.0,17387.0,1.08960118]
[1673446620337,0.018,17388.0,17387.0,1.26168961]
[1673446620592,0.018,17388.0,17387.0,1.08960118]
[1673446621113,0.018,17388.0,17387.0,2.7313527]
[1673446621373,0.018,17388.0,17387.0,3.16194845]
[1673446621696,0.018,17388.0,17387.0,3.7313527]
[1673446621891,0.018,17388.0,17387.0,3.9038158]
[1673446622146,0.0039034,17389.0,17387.0,4.2594878]
[1673446622410,0.0039034,17389.0,17388.0,1.99025952]
[1673446622662,0.0039034,17389.0,17388.0,3.14047752]
[1673446623169,0.0039034,17389.0,17388.0,2.78080552]
[1673446623666,0.0039034,17389.0,17388.0,3.29615705]
[1673446623921,0.0039034,17389.0,17388.0,3.34315705]
[1673446623922,0.0179034,17389.0,17388.0,3.34315705]
[1673446624435,0.0179034,17389.0,17388.0,3.04315705]
[1673446624683,0.0179034,17389.0,17388.0,2.78480454]
[1673446625688,0.0179034,17389.0,17388.0,3.04315705]
[1673446626449,0.0179034,17389.0,17388.0,2.78480454]
[1673446626713,0.0179034,17389.0,17388.0,2.82780552]
[1673446626965,0.0179034,17389.0,17388.0,3.5512994]
[1673446627229,0.0179034,17389.0,17388.0,3.9109714]
[1673446627476,0.0179034,17389.0,17388.0,3.5512994]
[1673446627723,0.0179034,17389.0,17388.0,2.99974738]
[1673446627975,0.0179034,17389.0,17388.0,3.17199062]
[1673446628491,0.0179034,17389.0,17388.0,3.78818145]
[1673446628730,0.0179034,17389.0,17388.0,4.14785345]
[1673446629478,0.0179034,17389.0,17388.0,3.53166262]
[1673446629734,0.0179034,17389.0,17388.0,3.15791375]
[1673446629983,0.0179034,17389.0,17388.0,3.08699]
[1673446630235,0.0179034,17389.0,17388.0,3.87567384]
[1673446630490,0.0179034,17389.0,17388.0,3.32903933]
[1673446631268,0.0179034,17389.0,17388.0,3.38830103]
[1673446631559,0.0179034,17389.0,17388.0,3.90448149]
[1673446632089,0.0179034,17389.0,17388.0,3.86243216]
[1673446632353,0.0179034,17389.0,17388.0,3.81657069]
[1673446632634,0.0179034,17389.0,17388.0,4.37044711]
[1673446633196,0.0179034,17389.0,17388.0,3.5232492]
[1673446633470,0.0179034,17389.0,17388.0,4.38215031]
[1673446633722,0.0179034,17389.0,17388.0,4.21024112]
[1673446635074,0.0179034,17389.0,17388.0,3.27369756]
[1673446635326,0.01781884,17389.0,17388.0,2.91402556]
[1673446635597,0.01781884,17389.0,17388.0,2.48421031]
[1673446636906,0.01781884,17389.0,17388.0,2.78421031]
[1673446637357,0.00049438,17389.0,17388.0,0.73399231]
[1673446637362,0.75439638,17390.0,17388.0,0.68699231]
[1673446637612,0.014,17389.0,17388.0,0.73399231]
[1673446637871,0.75439638,17390.0,17388.0,0.68699231]
[1673446638148,0.007,17389.0,17388.0,0.73299231]
[1673446638446,1.54509952,17390.0,17388.0,0.68699231]
[1673446638652,1.06139638,17390.0,17388.0,0.73299231]
[1673446638905,1.55209952,17390.0,17388.0,0.73299231]
[1673446640215,0.63221488,17389.0,17388.0,0.046]
[1673446641466,0.63221488,17389.0,17387.0,1.17067255]
[1673446641711,0.64021488,17389.0,17388.0,0.062]
[1673446642718,0.008,17389.0,17388.0,0.962]
[1673446642961,0.008,17389.0,17388.0,1.50952918]
[1673446643461,0.008,17389.0,17388.0,1.20952918]
[1673446644480,0.008,17389.0,17388.0,1.50952918]
[1673446646009,0.008,17389.0,17388.0,1.20952918]
[1673446647293,0.008,17389.0,17388.0,1.50952918]
[1673446650324,1.35296978,17390.0,17388.0,1.50952918]
[1673446650579,1.35296978,17390.0,17388.0,1.20952918]
[1673446651648,1.35296978,17390.0,17388.0,1.14752918]
[1673446651926,1.35296978,17390.0,17388.0,1.20952918]
[1673446651927,1.36096978,17390.0,17388.0,1.20952918]
[1673446652181,0.58173846,17389.0,17388.0,0.062]
[1673446652662,1.72953117,17389.0,17388.0,0.062]
[1673446653184,1.89503117,17389.0,17387.0,0.53950439]
[1673446653445,1.54335917,17389.0,17388.0,0.062]
[1673446654240,1.54289483,17389.0,17388.0,0.062]
[1673446654488,1.53489483,17389.0,17387.0,0.53950439]
[1673446654992,1.54289483,17389.0,17388.0,0.062]
[1673446655251,1.53489483,17389.0,17387.0,0.53950439]
[1673446655504,0.359672,17388.0,17387.0,0.53950439]
[1673446655772,1.53489483,17389.0,17387.0,0.53950439]
[1673446656305,1.54289483,17389.0,17388.0,0.062]
[1673446656547,1.89456683,17389.0,17387.0,0.53950439]
[1673446656805,0.99911238,17388.0,17387.0,0.60137331]
[1673446657079,1.17253737,17388.0,17386.0,1.34708976]
[1673446657331,1.17253737,17388.0,17387.0,0.062]
[1673446657857,0.68508138,17388.0,17387.0,0.062]
[1673446658128,0.68508138,17388.0,17386.0,1.95635263]
[1673446658378,1.18423299,17388.0,17386.0,2.01835263]
[1673446658658,0.69708138,17388.0,17386.0,2.01835263]
[1673446659426,0.69708138,17388.0,17386.0,1.95635263]
[1673446659427,0.68508138,17388.0,17386.0,1.95635263]
[1673446659681,0.69308138,17388.0,17387.0,0.062]
[1673446659945,1.17238864,17388.0,17386.0,1.78443687]
[1673446660240,1.18438864,17388.0,17386.0,2.01835263]
[1673446660966,1.18438864,17388.0,17386.0,1.27126287]
[1673446661512,0.1642,17387.0,17386.0,1.27126287]
[1673446661740,0.65099731,17387.0,17386.0,0.662]
[1673446662263,0.1642,17387.0,17386.0,0.662]
[1673446662518,0.1642,17387.0,17386.0,0.6]
[1673446662823,0.1762,17387.0,17386.0,0.662]
[1673446663621,0.1762,17387.0,17386.0,0.6]
[1673446663622,0.10926,17387.0,17386.0,0.6]
[1673446664179,0.12226,17387.0,17386.0,0.657]
[1673446664431,0.10926,17387.0,17386.0,0.6]
[1673446665498,0.11126,17387.0,17386.0,0.602]
[1673446665756,0.6974972,17387.0,17386.0,0.602]
[1673446666016,0.9974972,17387.0,17386.0,0.602]
[1673446666264,1.48117484,17387.0,17386.0,0.602]
[1673446671150,1.84084684,17387.0,17386.0,0.602]
[1673446671409,2.00634684,17387.0,17386.0,0.602]
[1673446671894,2.58148884,17387.0,17386.0,0.602]
[1673446674175,2.00634684,17387.0,17386.0,0.602]
[1673446675412,1.64667484,17387.0,17386.0,0.602]
[1673446675657,2.00634684,17387.0,17386.0,0.602]
[1673446675871,1.64667484,17387.0,17386.0,0.602]
[1673446676637,2.00634684,17387.0,17386.0,0.602]
[1673446678419,1.42010964,17387.0,17386.0,1.32065398]
[1673446679421,1.42010964,17387.0,17386.0,0.602]
[1673446679929,1.06043764,17387.0,17386.0,0.602]
[1673446681200,1.42010964,17387.0,17386.0,0.602]
[1673446681443,1.06043764,17387.0,17386.0,0.602]
[1673446681948,1.79027903,17387.0,17386.0,0.602]
[1673446682200,2.14995103,17387.0,17386.0,0.602]
[1673446682453,2.14495103,17387.0,17386.0,0.602]
[1673446682700,1.78527903,17387.0,17386.0,0.602]
[1673446683222,1.21551903,17387.0,17386.0,0.602]
[1673446683475,0.002,17387.0,17386.0,1.26438449]
[1673446683732,0.002,17387.0,17386.0,1.56438449]
[1673446684745,0.002,17387.0,17386.0,1.46438449]
[1673446685769,0.002,17387.0,17386.0,1.76438449]
[1673446686272,0.002,17387.0,17386.0,1.93630025]
[1673446686532,0.00167,17387.0,17386.0,1.16438449]
[1673446687045,0.00167,17387.0,17386.0,0.86438449]
[1673446687293,0.00167,17387.0,17386.0,1.26438449]
[1673446687803,0.00167,17387.0,17386.0,1.56438449]
[1673446689065,0.00167,17387.0,17386.0,1.73630025]
[1673446689830,0.00167,17387.0,17386.0,2.03130025]
[1673446690090,0.00167,17387.0,17386.0,1.73130025]
[1673446690345,0.00167,17387.0,17386.0,2.03130025]
[1673446690590,0.00167,17387.0,17386.0,1.73130025]
[1673446691109,0.71494069,17387.0,17386.0,1.43130025]
[1673446691364,0.71494069,17387.0,17386.0,0.6]
[1673446691365,1.19657088,17387.0,17386.0,0.6]
[1673446691863,1.35697088,17387.0,17386.0,0.6]
[1673446692149,1.71664288,17387.0,17386.0,0.6]
[1673446692870,2.18880658,17387.0,17386.0,0.6]
[1673446694166,2.44730839,17387.0,17386.0,0.6]
[1673446694409,2.18880658,17387.0,17386.0,0.6]
[1673446697764,4.7780057,17387.0,17384.0,0.6]
[1673446698010,1.10312234,17385.0,17384.0,0.6]
[1673446698279,3.49068519,17385.0,17382.0,0.78804589]
[1673446698543,0.1654,17383.0,17382.0,0.78804589]
[1673446698788,1.2429601,17383.0,17382.0,0.61613013]
[1673446699043,1.30528221,17383.0,17382.0,0.61613013]
[1673446699539,1.30528221,17383.0,17382.0,0.61598013]
[1673446700300,1.30528221,17383.0,17382.0,0.61998013]
[1673446700301,1.30728221,17383.0,17382.0,0.61998013]
[1673446700799,1.85661204,17383.0,17382.0,0.61998013]
[1673446701786,3.33294795,17383.0,17382.0,0.01998013]
[1673446702050,3.4325174,17383.0,17382.0,0.01998013]
[1673446702300,3.85435724,17383.0,17382.0,0.01998013]
[1673446710344,3.6977726,17383.0,17382.0,0.01998013]
[1673446712298,3.5335726,17383.0,17382.0,0.01998013]
[1673446712564,2.88838541,17383.0,17382.0,0.01998013]
[1673446712818,3.05378541,17383.0,17382.0,0.01785255]
[1673446713072,3.22283748,17383.0,17382.0,0.01785255]
[1673446713318,2.62313021,17383.0,17382.0,0.01785255]
[1673446713572,3.21707788,17383.0,17382.0,0.01785255]
[1673446713850,3.38923127,17383.0,17382.0,0.01785255]
[1673446717780,3.38923127,17383.0,17382.0,0.04265717]
[1673446720224,4.04735489,17383.0,17382.0,0.04265717]
[1673446721631,3.38923127,17383.0,17382.0,0.04265717]
[1673446722128,4.02691206,17383.0,17382.0,0.04265717]
[1673446722375,3.90384809,17383.0,17382.0,0.04265717]
[1673446722663,3.38923127,17383.0,17382.0,0.04265717]
[1673446723164,4.08530247,17383.0,17382.0,0.04265717]
[1673446723952,3.91314908,17383.0,17382.0,0.04265717]
[1673446724677,3.38923127,17383.0,17382.0,0.04265717]
[1673446725706,3.38923127,17383.0,17382.0,0.01785255]
[1673446726972,3.21507788,17383.0,17382.0,0.01385255]
[1673446727226,3.34307788,17383.0,17382.0,0.01885255]
[1673446727480,4.03906256,17383.0,17382.0,0.01885255]
[1673446727733,3.10797765,17383.0,17382.0,0.01885255]
[1673446727993,3.10797765,17383.0,17382.0,1e-08]
[1673446728264,2.58373021,17383.0,17382.0,1e-08]
[1673446729512,2.00845621,17383.0,17382.0,1e-08]